fUSD/lending_fUSD_20260625
["ID","MTS","AMOUNT","RATE_DAILY","PERIOD"]
[426404547,1782352248000,-403.04607728,0.00026497,2]
[426404554,1782352248000,-151.62305406,0.00026497,2]
[426404549,1782352248000,-178.93360286,0.00026497,2]
[426404546,1782352248000,-331.36690827,0.00026497,2]
[426404552,1782352248000,-437.39920725,0.00026497,2]
[426404545,1782352248000,-791.87274914,0.00026497,2]
[426404550,1782352248000,-434.05963275,0.00026497,2]
[426404548,1782352248000,-169.66290735,0.00026497,2]
[426404553,1782352248000,-518.20407636,0.00026497,2]
[426404551,1782352248000,-402.91159028,0.00026497,2]
[426404556,1782352248000,-301.96054261,0.00026497,2]
[426404565,1782352248000,-160.24449583,0.00026497,2]
[426404566,1782352248000,-465.91071253,0.00026497,2]
[426404578,1782352248000,-528.29101683,0.00026498,2]
[426404564,1782352248000,-159.91703272,0.00026497,2]
[426404557,1782352248000,-413.50249621,0.00026497,2]
[426404558,1782352248000,-803.4607027,0.00026497,2]
[426404559,1782352248000,-426.93316061,0.00026497,2]
[426404560,1782352248000,-562.3384583,0.00026497,2]
[426404563,1782352248000,-690.77544595,0.00026497,2]
[426404562,1782352248000,-160.24622272,0.00026497,2]
[426404567,1782352248000,-260.79527792,0.00026497,2]
[426404568,1782352248000,-306.34243571,0.00026498,2]
[426404569,1782352248000,-160.25728499,0.00026498,2]
[426404579,1782352248000,-160.58243587,0.00026498,2]
[426404570,1782352248000,-186.65627525,0.00026498,2]
[426404576,1782352248000,-160.25243297,0.00026498,2]
[426404573,1782352248000,-160.24602226,0.00026498,2]
[426404555,1782352248000,-171.59676116,0.00026497,2]
[426404606,1782352248000,-300.0,0.000269,9]
[426404617,1782352248000,-818.71336242,0.00026988,2]
[426404605,1782352248000,-151.0,0.000268,2]
[426404634,1782352248000,-808.24377981,0.00027059,2]
[426404638,1782352248000,-989.84093643,0.00027059,2]
[426404643,1782352248000,-1661.23410669,0.00027082,2]
[426404645,1782352248000,-1244.39681286,0.00027082,2]
[426404644,1782352248000,-872.5692761,0.00027082,2]
[426404646,1782352248000,-1280.12290674,0.00027082,2]
[426404647,1782352248000,-1573.42140656,0.00027082,2]
[426404648,1782352248000,-794.57818091,0.00027082,2]
[426404649,1782352248000,-1784.63,0.00027315,2]
[426404650,1782352248000,-1784.63,0.00027315,2]
[426404651,1782352248000,-1787.64,0.00027315,2]
[426404655,1782352248000,-150.0,0.00027397,2]
[426404652,1782352248000,-4199.53063919,0.0002739,2]
[426404637,1782352248000,-883.32404365,0.00027059,2]
[426404654,1782352248000,-225.16099715,0.00027397,7]
[426404662,1782352248000,-422.0,0.00027397,2]
[426404656,1782352248000,-422.0,0.00027397,2]
[426404657,1782352248000,-422.0,0.00027397,2]
[426404659,1782352248000,-422.0,0.00027397,2]
[426404658,1782352248000,-422.0,0.00027397,2]
[426404667,1782352248000,-422.0,0.00027397,2]
[426404660,1782352248000,-422.0,0.00027397,2]
[426404665,1782352248000,-422.0,0.00027397,2]
[426404661,1782352248000,-422.0,0.00027397,2]
[426404668,1782352248000,-422.0,0.00027397,2]
[426404664,1782352248000,-422.0,0.00027397,2]
[426404666,1782352248000,-422.0,0.00027397,2]
[426404616,1782352248000,-990.02442437,0.00026988,2]
[426404663,1782352248000,-422.0,0.00027397,2]
[426404636,1782352248000,-870.64467259,0.00027059,2]
[426404653,1782352248000,-1423.58756039,0.00027397,2]
[426404633,1782352248000,-530.0,0.00027,2]
[426404639,1782352248000,-1004.32587837,0.00027059,2]
[426404607,1782352248000,-956.0912682,0.00026988,2]
[426404612,1782352248000,-834.36596501,0.00026988,2]
[426404609,1782352248000,-1001.2173237,0.00026988,2]
[426404613,1782352248000,-805.79139359,0.00026988,2]
[426404608,1782352248000,-947.64734394,0.00026988,2]
[426404611,1782352248000,-801.79187789,0.00026988,2]
[426404610,1782352248000,-783.66067673,0.00026988,2]
[426404614,1782352248000,-869.15132317,0.00026988,2]
[426404615,1782352248000,-826.59131055,0.00026988,2]
[426404620,1782352248000,-859.04152003,0.00026997,2]
[426404619,1782352248000,-831.03524063,0.00026988,2]
[426404627,1782352248000,-1083.32208891,0.00026999,2]
[426404622,1782352248000,-1020.3172215,0.00026997,2]
[426404618,1782352248000,-804.16786971,0.00026988,2]
[426404629,1782352248000,-844.36201066,0.00026999,2]
[426404625,1782352248000,-808.61150216,0.00026999,2]
[426404640,1782352248000,-863.46930744,0.00027059,2]
[426404641,1782352248000,-935.63465756,0.00027059,2]
[426404631,1782352248000,-250.0,0.00027,2]
[426404642,1782352248000,-924.34459838,0.00027059,2]
[426404632,1782352248000,-1056.70660837,0.00027,2]
[426404635,1782352248000,-788.45085854,0.00027059,2]
[426404626,1782352248000,-879.40120057,0.00026999,2]
[426404624,1782352248000,-907.74666195,0.00026999,2]
[426404621,1782352248000,-825.71852115,0.00026997,2]
[426404628,1782352248000,-805.47984777,0.00026999,2]
[426404623,1782352248000,-1045.39788824,0.00026997,2]
[426404630,1782352248000,-845.35678248,0.00026999,2]
[426404708,1782352249000,-1792.696862,0.00027397,2]
[426404707,1782352249000,-1180.28,0.00027397,2]
[426404714,1782352249000,-31631.34,0.00027397,10]
[426404701,1782352249000,-1025.94,0.00027397,2]
[426404710,1782352249000,-1792.696862,0.00027397,2]
[426404713,1782352249000,-1792.696862,0.00027397,2]
[426404705,1782352249000,-1792.696862,0.00027397,2]
[426404712,1782352249000,-1792.696862,0.00027397,2]
[426404699,1782352249000,-151.0,0.00027397,2]
[426404702,1782352249000,-530.54,0.00027397,2]
[426404715,1782352249000,-26359.45,0.00027397,10]
[426404706,1782352249000,-1792.696862,0.00027397,2]
[426404709,1782352249000,-1792.696862,0.00027397,2]
[426404720,1782352249000,-598.90761456,0.00027397,2]
[426404717,1782352249000,-18305.18,0.00027397,10]
[426404719,1782352249000,-399.27174304,0.00027397,2]
[426404721,1782352249000,-798.54348607,0.00027397,2]
[426404716,1782352249000,-21966.21,0.00027397,10]
[426404718,1782352249000,-199.63587152,0.00027397,2]
[426404724,1782352249000,-509.43830432,0.00027397,2]
[426404726,1782352249000,-197.55281496,0.00027397,2]
[426404722,1782352249000,-169.81276811,0.00027397,2]
[426404727,1782352249000,-320.53809147,0.00027397,2]
[426404725,1782352249000,-679.25107243,0.00027397,2]
[426404723,1782352249000,-339.62553621,0.00027397,2]
[426404729,1782352249000,-592.65844489,0.00027397,2]
[426404694,1782352249000,-151.0,0.00027397,2]
[426404711,1782352249000,-1792.696862,0.00027397,2]
[426404696,1782352249000,-151.0,0.00027397,2]
[426404740,1782352249000,-1000.0,0.000274,2]
[426404697,1782352249000,-151.0,0.00027397,2]
[426404669,1782352249000,-422.0,0.00027397,2]
[426404670,1782352249000,-422.0,0.00027397,2]
[426404678,1782352249000,-422.0,0.00027397,2]
[426404672,1782352249000,-422.0,0.00027397,2]
[426404674,1782352249000,-422.0,0.00027397,2]
[426404676,1782352249000,-422.0,0.00027397,2]
[426404675,1782352249000,-422.0,0.00027397,2]
[426404671,1782352249000,-422.0,0.00027397,2]
[426404679,1782352249000,-294.54236203,0.00027397,2]
[426404677,1782352249000,-422.0,0.00027397,2]
[426404673,1782352249000,-422.0,0.00027397,2]
[426404681,1782352249000,-500.0,0.00027397,2]
[426404691,1782352249000,-151.0,0.00027397,2]
[426404698,1782352249000,-151.0,0.00027397,2]
[426404689,1782352249000,-151.0,0.00027397,2]
[426404683,1782352249000,-1500.0,0.00027397,2]
[426404680,1782352249000,-150.0,0.00027397,2]
[426404684,1782352249000,-160.63,0.00027397,15]
[426404687,1782352249000,-151.0,0.00027397,2]
[426404685,1782352249000,-151.0,0.00027397,2]
[426404688,1782352249000,-151.0,0.00027397,2]
[426404686,1782352249000,-251.018638,0.00027397,2]
[426404693,1782352249000,-151.0,0.00027397,2]
[426404700,1782352249000,-226.935984,0.00027397,2]
[426404692,1782352249000,-151.0,0.00027397,2]
[426404704,1782352249000,-1475.4,0.00027397,2]
[426404695,1782352249000,-151.0,0.00027397,2]
[426404703,1782352249000,-300.0,0.00027397,2]
[426404682,1782352249000,-195.33695911,0.00027397,2]
[426404739,1782352249000,-1000.0,0.000274,2]
[426404690,1782352249000,-151.0,0.00027397,2]
[426404733,1782352249000,-1000.0,0.000274,2]
[426404763,1782352249000,-1188.02930924,0.00027829,2]
[426404759,1782352249000,-962.15025346,0.00027829,2]
[426404762,1782352249000,-991.90957265,0.00027829,2]
[426404768,1782352249000,-1224.3806658,0.00027838,2]
[426404776,1782352249000,-1044.77360711,0.00027901,2]
[426404771,1782352249000,-1299.9865067,0.00027841,2]
[426404779,1782352249000,-1036.16316893,0.00027901,2]
[426404773,1782352249000,-1014.42813898,0.00027841,2]
[426404772,1782352249000,-966.57581732,0.00027841,2]
[426404769,1782352249000,-970.3338026,0.00027841,2]
[426404770,1782352249000,-1055.28144069,0.00027841,2]
[426404775,1782352249000,-946.14103024,0.00027901,2]
[426404780,1782352249000,-1122.76158908,0.00027902,2]
[426404761,1782352249000,-966.94967231,0.00027829,2]
[426404791,1782352249000,-800.0,0.00028,2]
[426404778,1782352249000,-1205.19105405,0.00027901,2]
[426404777,1782352249000,-1187.80912372,0.00027901,2]
[426404782,1782352249000,-1047.08313132,0.00027925,2]
[426404783,1782352249000,-1493.27617543,0.00027925,2]
[426404792,1782352249000,-800.0,0.00028,2]
[426404781,1782352249000,-1993.48092802,0.00027925,2]
[426404784,1782352249000,-1536.14748809,0.00027925,2]
[426404790,1782352249000,-849.06384054,0.00027958,2]
[426404786,1782352249000,-953.49381709,0.00027925,2]
[426404788,1782352249000,-3477.1244261,0.0002795,2]
[426404789,1782352249000,-998.17935759,0.00027958,2]
[426404787,1782352249000,-21183.8986537,0.0002795,2]
[426404728,1782352249000,-395.10562993,0.00027397,2]
[426404774,1782352249000,-480.69,0.000279,7]
[426404760,1782352249000,-1001.23915801,0.00027829,2]
[426404785,1782352249000,-1888.10568788,0.00027925,2]
[426404755,1782352249000,-616.49731727,0.00027819,2]
[426404758,1782352249000,-940.39281208,0.00027829,2]
[426404734,1782352249000,-1000.0,0.000274,2]
[426404732,1782352249000,-270.60214322,0.00027397,7]
[426404730,1782352249000,-172.93179836,0.00027397,7]
[426404736,1782352249000,-1000.0,0.000274,2]
[426404731,1782352249000,-278.3721293,0.00027397,7]
[426404738,1782352249000,-1480.95,0.000274,2]
[426404737,1782352249000,-1000.0,0.000274,2]
[426404741,1782352249000,-1000.0,0.000274,2]
[426404742,1782352249000,-1987.3,0.000274,2]
[426404747,1782352249000,-5224.74,0.000274,2]
[426404743,1782352249000,-5224.74,0.000274,2]
[426404746,1782352249000,-5224.74,0.000274,2]
[426404751,1782352249000,-205.40029231,0.000275,2]
[426404735,1782352249000,-1000.0,0.000274,2]
[426404752,1782352249000,-500.0,0.000275,7]
[426404749,1782352249000,-442.08,0.00027485,10]
[426404765,1782352249000,-997.24228875,0.00027829,2]
[426404757,1782352249000,-1137.17681273,0.00027829,2]
[426404766,1782352249000,-1030.84982404,0.00027838,2]
[426404764,1782352249000,-982.45603491,0.00027829,2]
[426404756,1782352249000,-1147.30952184,0.00027829,2]
[426404767,1782352249000,-990.86222538,0.00027838,2]
[426404754,1782352249000,-616.49731727,0.00027608,2]
[426404750,1782352249000,-189.30385509,0.00027496,2]
[426404745,1782352249000,-5224.74,0.000274,2]
[426404753,1782352249000,-951.0,0.000275,7]
[426404744,1782352249000,-5224.74,0.000274,2]
[426404748,1782352249000,-475.0,0.00027404,5]
[426404828,1782352250000,-500.0,0.0002839,2]
[426404826,1782352250000,-500.0,0.0002839,2]
[426404822,1782352250000,-500.0,0.0002839,2]
[426404830,1782352250000,-500.0,0.0002839,2]
[426404829,1782352250000,-500.0,0.0002839,2]
[426404820,1782352250000,-500.0,0.0002839,2]
[426404824,1782352250000,-500.0,0.0002839,2]
[426404821,1782352250000,-500.0,0.0002839,2]
[426404819,1782352250000,-500.0,0.0002839,2]
[426404823,1782352250000,-500.0,0.0002839,2]
[426404825,1782352250000,-500.0,0.0002839,2]
[426404838,1782352250000,-200.0,0.0002839,2]
[426404832,1782352250000,-500.0,0.0002839,2]
[426404842,1782352250000,-200.0,0.0002839,2]
[426404841,1782352250000,-200.0,0.0002839,2]
[426404833,1782352250000,-500.0,0.0002839,2]
[426404831,1782352250000,-500.0,0.0002839,2]
[426404835,1782352250000,-595.0,0.0002839,2]
[426404834,1782352250000,-500.0,0.0002839,2]
[426404836,1782352250000,-200.0,0.0002839,2]
[426404818,1782352250000,-166.0,0.00028356,3]
[426404840,1782352250000,-200.0,0.0002839,2]
[426404827,1782352250000,-500.0,0.0002839,2]
[426404813,1782352250000,-159.32545711,0.00028356,3]
[426404802,1782352250000,-1423.58756039,0.00028082,2]
[426404814,1782352250000,-154.78238636,0.00028356,3]
[426404837,1782352250000,-200.0,0.0002839,2]
[426404793,1782352250000,-800.0,0.00028,2]
[426404795,1782352250000,-643.0,0.00028,2]
[426404805,1782352250000,-478.148171,0.00028356,7]
[426404804,1782352250000,-1000.0,0.00028315,2]
[426404794,1782352250000,-160.0,0.00028,2]
[426404796,1782352250000,-5714.19806955,0.00028,2]
[426404797,1782352250000,-632.85,0.00028,2]
[426404798,1782352250000,-470.11,0.00028,2]
[426404800,1782352250000,-600.0,0.00028,2]
[426404812,1782352250000,-263.10784614,0.00028356,3]
[426404801,1782352250000,-2000.0,0.00028,7]
[426404803,1782352250000,-616.49731727,0.0002824,2]
[426404815,1782352250000,-151.0,0.00028356,3]
[426404807,1782352250000,-498.469396,0.00028356,7]
[426404816,1782352250000,-151.0,0.00028356,3]
[426404809,1782352250000,-409.841289,0.00028356,7]
[426404817,1782352250000,-166.0,0.00028356,3]
[426404808,1782352250000,-492.547989,0.00028356,7]
[426404806,1782352250000,-409.841289,0.00028356,7]
[426404810,1782352250000,-421.0,0.00028356,2]
[426404811,1782352250000,-1682.0,0.00028356,2]
[426404799,1782352250000,-361.63,0.00028,2]
[426404839,1782352250000,-200.0,0.0002839,2]
[426404844,1782352250000,-200.0,0.0002839,2]
[426404881,1782352250000,-376.26191198,0.00028658,2]
[426404871,1782352250000,-200.0,0.0002839,2]
[426404869,1782352250000,-200.0,0.0002839,2]
[426404868,1782352250000,-200.0,0.0002839,2]
[426404874,1782352250000,-1423.58756039,0.00028425,2]
[426404879,1782352250000,-3576.0,0.00028532,10]
[426404875,1782352250000,-800.0,0.000285,2]
[426404877,1782352250000,-800.0,0.000285,2]
[426404876,1782352250000,-800.0,0.000285,2]
[426404882,1782352250000,-188.13095599,0.00028658,2]
[426404880,1782352250000,-752.52382395,0.00028658,2]
[426404870,1782352250000,-200.0,0.0002839,2]
[426404883,1782352250000,-616.49731727,0.00028662,2]
[426404884,1782352250000,-585.90144699,0.00028748,2]
[426404888,1782352250000,-1197.81522911,0.00028799,2]
[426404887,1782352250000,-150.0,0.00028787,2]
[426404890,1782352250000,-150.0,0.00028855,2]
[426404891,1782352250000,-616.49731727,0.00028872,2]
[426404889,1782352250000,-150.0,0.00028855,2]
[426404886,1782352250000,-179.11178271,0.00028767,2]
[426404893,1782352250000,-750.0,0.00028986,2]
[426404892,1782352250000,-478.148171,0.00028923,7]
[426404845,1782352250000,-200.0,0.0002839,2]
[426404885,1782352250000,-150.0,0.00028767,2]
[426404867,1782352250000,-200.0,0.0002839,2]
[426404878,1782352250000,-611.0,0.00028507,2]
[426404865,1782352250000,-200.0,0.0002839,2]
[426404843,1782352250000,-200.0,0.0002839,2]
[426404847,1782352250000,-200.0,0.0002839,2]
[426404848,1782352250000,-200.0,0.0002839,2]
[426404846,1782352250000,-200.0,0.0002839,2]
[426404849,1782352250000,-200.0,0.0002839,2]
[426404850,1782352250000,-200.0,0.0002839,2]
[426404866,1782352250000,-200.0,0.0002839,2]
[426404856,1782352250000,-200.0,0.0002839,2]
[426404857,1782352250000,-200.0,0.0002839,2]
[426404853,1782352250000,-200.0,0.0002839,2]
[426404852,1782352250000,-200.0,0.0002839,2]
[426404855,1782352250000,-200.0,0.0002839,2]
[426404851,1782352250000,-200.0,0.0002839,2]
[426404860,1782352250000,-200.0,0.0002839,2]
[426404862,1782352250000,-200.0,0.0002839,2]
[426404861,1782352250000,-202.0,0.0002839,2]
[426404859,1782352250000,-200.0,0.0002839,2]
[426404858,1782352250000,-200.0,0.0002839,2]
[426404854,1782352250000,-200.0,0.0002839,2]
[426404864,1782352250000,-200.0,0.0002839,2]
[426404873,1782352250000,-186.0,0.0002839,2]
[426404872,1782352250000,-200.0,0.0002839,2]
[426404863,1782352250000,-200.0,0.0002839,2]
[426404937,1782352251000,-750.0,0.00028986,2]
[426404935,1782352251000,-750.0,0.00028986,2]
[426404933,1782352251000,-750.0,0.00028986,2]
[426404930,1782352251000,-750.0,0.00028986,2]
[426404932,1782352251000,-750.0,0.00028986,2]
[426404925,1782352251000,-750.0,0.00028986,2]
[426404928,1782352251000,-750.0,0.00028986,2]
[426404926,1782352251000,-750.0,0.00028986,2]
[426404931,1782352251000,-750.0,0.00028986,2]
[426404927,1782352251000,-750.0,0.00028986,2]
[426404938,1782352251000,-659.0,0.00028986,2]
[426404929,1782352251000,-750.0,0.00028986,2]
[426404936,1782352251000,-750.0,0.00028986,2]
[426404951,1782352251000,-500.0,0.00029,2]
[426404939,1782352251000,-800.0,0.00029,2]
[426404942,1782352251000,-10375.35647661,0.00029,2]
[426404940,1782352251000,-800.0,0.00029,2]
[426404941,1782352251000,-292.1455377,0.00029,2]
[426404943,1782352251000,-500.0,0.00029,2]
[426404944,1782352251000,-500.0,0.00029,2]
[426404945,1782352251000,-500.0,0.00029,2]
[426404955,1782352251000,-500.0,0.00029,2]
[426404946,1782352251000,-500.0,0.00029,2]
[426404954,1782352251000,-500.0,0.00029,2]
[426404956,1782352251000,-500.0,0.00029,2]
[426404922,1782352251000,-750.0,0.00028986,2]
[426404934,1782352251000,-750.0,0.00028986,2]
[426404921,1782352251000,-750.0,0.00028986,2]
[426404907,1782352251000,-750.0,0.00028986,2]
[426404923,1782352251000,-750.0,0.00028986,2]
[426404895,1782352251000,-750.0,0.00028986,2]
[426404894,1782352251000,-750.0,0.00028986,2]
[426404897,1782352251000,-750.0,0.00028986,2]
[426404906,1782352251000,-750.0,0.00028986,2]
[426404908,1782352251000,-750.0,0.00028986,2]
[426404896,1782352251000,-750.0,0.00028986,2]
[426404902,1782352251000,-750.0,0.00028986,2]
[426404898,1782352251000,-750.0,0.00028986,2]
[426404899,1782352251000,-750.0,0.00028986,2]
[426404903,1782352251000,-750.0,0.00028986,2]
[426404905,1782352251000,-750.0,0.00028986,2]
[426404901,1782352251000,-750.0,0.00028986,2]
[426404924,1782352251000,-750.0,0.00028986,2]
[426404900,1782352251000,-750.0,0.00028986,2]
[426404910,1782352251000,-750.0,0.00028986,2]
[426404920,1782352251000,-750.0,0.00028986,2]
[426404909,1782352251000,-750.0,0.00028986,2]
[426404919,1782352251000,-750.0,0.00028986,2]
[426404911,1782352251000,-750.0,0.00028986,2]
[426404918,1782352251000,-750.0,0.00028986,2]
[426404913,1782352251000,-750.0,0.00028986,2]
[426404914,1782352251000,-750.0,0.00028986,2]
[426404915,1782352251000,-750.0,0.00028986,2]
[426404917,1782352251000,-750.0,0.00028986,2]
[426404912,1782352251000,-750.0,0.00028986,2]
[426404916,1782352251000,-750.0,0.00028986,2]
[426404904,1782352251000,-750.0,0.00028986,2]
[426404947,1782352251000,-500.0,0.00029,2]
[426405005,1782352251000,-460.06516213,0.00029026,2]
[426404948,1782352251000,-500.0,0.00029,2]
[426404984,1782352251000,-200.0,0.00029,2]
[426404988,1782352251000,-1003.85516835,0.00029,2]
[426404992,1782352251000,-592.9,0.00029,2]
[426404986,1782352251000,-200.0,0.00029,2]
[426404987,1782352251000,-331.24,0.00029,2]
[426404989,1782352251000,-220.35718499,0.00029,2]
[426404991,1782352251000,-1171.0,0.00029,2]
[426404990,1782352251000,-1598.51570813,0.00029,2]
[426404993,1782352251000,-500.0,0.00029,2]
[426404996,1782352251000,-500.0,0.00029,7]
[426404994,1782352251000,-444.87732902,0.00029,2]
[426404998,1782352251000,-500.0,0.00029,7]
[426404985,1782352251000,-200.0,0.00029,2]
[426405001,1782352251000,-528.89720843,0.00029,2]
[426405003,1782352251000,-240.01629053,0.00029021,2]
[426404997,1782352251000,-513.05,0.00029,7]
[426405002,1782352251000,-193.55812462,0.00029,2]
[426404999,1782352251000,-500.0,0.00029,7]
[426405008,1782352251000,-500.0,0.00029032,2]
[426405007,1782352251000,-500.0,0.00029032,2]
[426405006,1782352251000,-611.0,0.00029027,2]
[426405004,1782352251000,-500.0,0.00029026,2]
[426405009,1782352251000,-500.0,0.00029032,2]
[426405010,1782352251000,-483.4781379,0.00029032,2]
[426404953,1782352251000,-500.0,0.00029,2]
[426405011,1782352251000,-150.0,0.00029032,2]
[426405000,1782352251000,-176.84,0.00029,7]
[426404982,1782352251000,-200.0,0.00029,2]
[426404995,1782352251000,-500.0,0.00029,7]
[426404980,1782352251000,-191.41461482,0.00029,2]
[426404949,1782352251000,-500.0,0.00029,2]
[426404950,1782352251000,-500.0,0.00029,2]
[426404983,1782352251000,-200.0,0.00029,2]
[426404957,1782352251000,-500.0,0.00029,2]
[426404958,1782352251000,-500.0,0.00029,2]
[426404967,1782352251000,-500.0,0.00029,2]
[426404959,1782352251000,-500.0,0.00029,2]
[426404965,1782352251000,-500.0,0.00029,2]
[426404960,1782352251000,-500.0,0.00029,2]
[426404966,1782352251000,-500.0,0.00029,2]
[426404969,1782352251000,-500.0,0.00029,2]
[426404968,1782352251000,-500.0,0.00029,2]
[426404961,1782352251000,-500.0,0.00029,2]
[426404964,1782352251000,-500.0,0.00029,2]
[426404952,1782352251000,-500.0,0.00029,2]
[426404962,1782352251000,-500.0,0.00029,2]
[426404963,1782352251000,-500.0,0.00029,2]
[426404971,1782352251000,-800.0,0.00029,2]
[426404979,1782352251000,-903.57589618,0.00029,2]
[426404977,1782352251000,-505.04764791,0.00029,2]
[426404978,1782352251000,-298.31632342,0.00029,2]
[426404976,1782352251000,-603.77,0.00029,2]
[426404981,1782352251000,-200.0,0.00029,2]
[426404975,1782352251000,-500.0,0.00029,2]
[426404973,1782352251000,-500.0,0.00029,2]
[426404970,1782352251000,-500.0,0.00029,2]
[426404972,1782352251000,-500.0,0.00029,2]
[426404974,1782352251000,-500.0,0.00029,2]
[426405054,1782352252000,-622.57,0.00029701,7]
[426405048,1782352252000,-189.30385509,0.00029496,2]
[426405050,1782352252000,-800.0,0.000295,2]
[426405051,1782352252000,-800.0,0.000295,2]
[426405049,1782352252000,-800.0,0.000295,2]
[426405046,1782352252000,-1423.58756039,0.00029452,2]
[426405052,1782352252000,-611.0,0.00029547,3]
[426405043,1782352252000,-1112.40945328,0.0002919,2]
[426405047,1782352252000,-478.148171,0.00029491,7]
[426405041,1782352252000,-1792.17206944,0.0002919,2]
[426405045,1782352252000,-320.0,0.00029434,5]
[426405065,1782352252000,-11509.21876417,0.000299,2]
[426405055,1782352252000,-791.8,0.00029701,7]
[426405053,1782352252000,-480.69,0.000296,7]
[426405056,1782352252000,-1690.64,0.00029726,2]
[426405057,1782352252000,-331.06920486,0.00029773,2]
[426405059,1782352252000,-498.469396,0.00029774,7]
[426405058,1782352252000,-409.841289,0.00029774,7]
[426405062,1782352252000,-151.69108745,0.00029838,2]
[426405061,1782352252000,-183.92466735,0.000298,2]
[426405060,1782352252000,-409.841289,0.00029774,7]
[426405066,1782352252000,-11509.21876402,0.000299,2]
[426405076,1782352252000,-11509.21876402,0.000299,2]
[426405073,1782352252000,-11509.21876402,0.000299,2]
[426405044,1782352252000,-173.35,0.00029315,2]
[426405063,1782352252000,-170.03,0.00029856,3]
[426405042,1782352252000,-2202.78996919,0.0002919,2]
[426405015,1782352252000,-1361.0,0.00029046,2]
[426405034,1782352252000,-1103.83120195,0.00029165,2]
[426405072,1782352252000,-951.0,0.000299,7]
[426405013,1782352252000,-383.0,0.00029046,2]
[426405012,1782352252000,-3562.0,0.00029046,2]
[426405014,1782352252000,-1277.0,0.00029046,2]
[426405016,1782352252000,-216.0,0.00029046,2]
[426405018,1782352252000,-498.469396,0.00029065,7]
[426405019,1782352252000,-409.841289,0.00029065,7]
[426405026,1782352252000,-1156.00592961,0.000291,2]
[426405017,1782352252000,-935.0,0.00029046,2]
[426405027,1782352252000,-1428.44411009,0.000291,2]
[426405024,1782352252000,-1163.44933688,0.00029091,2]
[426405020,1782352252000,-1338.52777548,0.00029091,2]
[426405022,1782352252000,-1122.50862904,0.00029091,2]
[426405025,1782352252000,-1202.65812805,0.000291,2]
[426405023,1782352252000,-1157.22783476,0.00029091,2]
[426405021,1782352252000,-1097.12494742,0.00029091,2]
[426405028,1782352252000,-1231.1616808,0.00029103,2]
[426405036,1782352252000,-1385.777311,0.00029165,2]
[426405038,1782352252000,-1309.88852059,0.00029166,2]
[426405039,1782352252000,-2325.72774936,0.0002919,2]
[426405037,1782352252000,-1406.05622972,0.00029165,2]
[426405031,1782352252000,-1127.67178688,0.00029103,2]
[426405032,1782352252000,-1423.58756039,0.0002911,2]
[426405030,1782352252000,-1516.65092448,0.00029103,2]
[426405029,1782352252000,-1307.12073412,0.00029103,2]
[426405033,1782352252000,-840029.0,0.0002912,20]
[426405035,1782352252000,-1218.90254162,0.00029165,2]
[426405040,1782352252000,-1742.155538,0.0002919,2]
[426405074,1782352252000,-11509.21876402,0.000299,2]
[426405064,1782352252000,-404.18,0.000299,7]
[426405068,1782352252000,-11509.21876402,0.000299,2]
[426405107,1782352252000,-2606.38830907,0.0003,2]
[426405103,1782352252000,-1116.56823181,0.0003,2]
[426405113,1782352252000,-1036.64,0.0003,2]
[426405106,1782352252000,-1000.0,0.0003,2]